lending/lending_fUSD_20241103
["ID","MTS","AMOUNT","RATE_DAILY","PERIOD"]
[341211606,1730647843675,-1078.92331912,0.000343,5]
[341211607,1730647843685,-152.72,0.00034419,2]
[341211608,1730647843695,-386.49,0.00034618,2]
[341211609,1730647843704,-433.34499939,0.0003469,2]
[341211610,1730647843713,-200.0,0.0003472,2]
[341211611,1730647843723,-200.0,0.00034763,2]
[341211612,1730647843735,-433.34499939,0.00034764,2]
[341211613,1730647843748,-182.02,0.00034771,2]
[341211614,1730647843757,-200.0,0.00034775,2]
[341211615,1730647843768,-433.34499939,0.00034779,2]
[341211617,1730647843781,-433.34499939,0.00034786,2]
[341211619,1730647843791,-150.0,0.00034787,7]
[341211621,1730647843800,-500.0,0.00034804,2]
[341211623,1730647843811,-274.76497483,0.00034849,120]
[341211625,1730647843821,-232.29,0.00034884,2]
[341211627,1730647843830,-288.152,0.000349,2]
[341211629,1730647843839,-832.57298073,0.00035,2]
[341211630,1730647843849,-600.0,0.00035,2]
[341211631,1730647843858,-152.72,0.00035065,2]
[341211632,1730647843868,-250.0,0.00035131,2]
[341211633,1730647843877,-157.4,0.00035332,120]
[341211634,1730647843887,-200.0,0.00035496,2]
[341211635,1730647843896,-156.52,0.00035616,2]
[341211636,1730647843905,-167.0,0.000357,21]
[341211637,1730647843914,-152.72,0.0003571,2]
[341211638,1730647843924,-1397.56866675,0.00035731,2]
[341211642,1730647845827,-332.08741669,0.00035731,2]
[341211643,1730647845953,-22170.34391656,0.00035731,2]
[341211644,1730647845963,-2784.05779711,0.00035739,120]
[341211645,1730647845974,-161.99,0.00035895,120]
[341211646,1730647845984,-1000.0,0.00035912,2]
[341211647,1730647846001,-152.72,0.00036355,2]
[341211648,1730647846015,-539.96,0.00036394,10]
[341211649,1730647846025,-449.97,0.00036394,10]
[341211650,1730647846035,-171.12382013,0.00036404,45]
[341211651,1730647846047,-622.125,0.00036404,45]
[341211652,1730647846056,-201.0,0.000367,18]
[341211653,1730647846067,-561.88,0.000367,14]
[341211654,1730647846078,-647.95,0.0003699,10]
[341211655,1730647846089,-2019.5733911,0.00037,2]
[341211656,1730647846100,-152.72,0.00037,2]
[341211657,1730647846109,-1055.83360204,0.00037052,5]
[341211658,1730647846119,-1130.81998798,0.00037052,5]
[341211659,1730647846130,-232.29,0.00037148,2]
[341211660,1730647846140,-268.029,0.00037411,2]
[341211661,1730647846149,-4967.41113837,0.00037533,2]
[341211662,1730647846159,-500.0,0.00037534,2]
[341211663,1730647846168,-152.72,0.00037645,2]
[341211664,1730647846178,-152.59,0.000377,31]
[341211665,1730647846188,-152.59,0.000377,31]
[341211666,1730647846197,-152.59,0.000377,31]
[341211667,1730647846206,-152.59,0.000377,31]
[341211668,1730647846216,-4013.62045192,0.00037708,2]
[341211670,1730647846228,-11427.44294808,0.00037708,2]
[341211672,1730647846238,-2776.03285655,0.00037808,6]
[341211674,1730647846251,-500.0,0.00037808,2]
[341211676,1730647846261,-508.21912193,0.00038082,2]
[341211678,1730647846270,-152.72,0.00038291,2]
[341211680,1730647846280,-150.0,0.00038355,30]
[341211682,1730647846291,-250.0,0.00038356,2]
[341211684,1730647846300,-150.0,0.00038492,30]
[341211686,1730647846310,-150.0,0.00038629,30]
[341211688,1730647846319,-370.62287641,0.00038629,2]
[341211689,1730647846329,-408.13500778,0.00038629,2]
[341211690,1730647846338,-500.0,0.00038629,2]
[341211691,1730647846347,-500.0,0.00038629,2]
[341211692,1730647846357,-607.82742304,0.00038629,2]
[341211693,1730647846366,-500.0,0.00038629,2]
[341211694,1730647846375,-500.0,0.00038629,2]
[341211695,1730647846384,-500.0,0.00038629,2]
[341211696,1730647846394,-500.0,0.00038629,2]
[341211698,1730647846403,-500.0,0.00038629,2]
[341211700,1730647846412,-500.0,0.00038629,2]
[341211702,1730647846422,-521.81922909,0.00038629,2]
[341211704,1730647846432,-500.0,0.00038629,2]
[341211707,1730647846441,-250.4564301,0.00038629,2]
[341211709,1730647846451,-500.0,0.00038629,2]
[341211711,1730647846460,-500.0,0.00038629,2]
[341211713,1730647846470,-500.0,0.00038629,2]
[341211715,1730647846479,-508.21695158,0.00038629,2]
[341211717,1730647846488,-500.0,0.00038629,2]
[341211719,1730647846498,-1103.37039215,0.00038663,5]
[341211720,1730647846507,-1441.1199316,0.00038663,5]
[341211721,1730647846516,-150.0,0.00038766,30]
[341211722,1730647846525,-150.0,0.00038903,30]
[341211723,1730647846535,-500.0,0.00038903,2]
[341211724,1730647846544,-500.0,0.00038903,2]
[341211725,1730647846553,-500.0,0.00038903,2]
[341211726,1730647846563,-547.84002167,0.00038903,2]
[341211727,1730647846572,-395.1495966,0.00038903,2]
[341211728,1730647846581,-500.0,0.00038903,2]
[341211729,1730647846591,-500.0,0.00038903,2]
[341211730,1730647846600,-374.97,0.00039167,10]
[341211731,1730647846609,-1933.05721343,0.00039176,2]
[341211732,1730647846622,-478.11278657,0.00039176,2]
[341211733,1730647846631,-156.9712926,0.00039176,2]
[341211734,1730647846640,-500.0,0.00039176,2]
[341211735,1730647846649,-500.0,0.00039176,2]
[341211736,1730647846658,-500.0,0.00039176,2]
[341211737,1730647846668,-500.0,0.00039176,2]
[341211738,1730647846677,-500.0,0.00039176,2]
[341211739,1730647846687,-500.0,0.00039177,2]
[341211740,1730647846697,-369.35696518,0.00039177,2]
[341211741,1730647846707,-500.0,0.00039177,2]
[341211742,1730647846718,-500.0,0.00039177,2]
[341211743,1730647846729,-500.0,0.00039177,2]
[341211744,1730647846738,-232.29,0.00039411,2]
[341211745,1730647846750,-500.0,0.0003945,2]
[341211746,1730647846759,-500.0,0.0003945,2]
[341211747,1730647846768,-33333.33,0.0003945,2]
[341211748,1730647846780,-594.63,0.0003945,2]
[341211749,1730647846790,-500.0,0.0003945,2]
[341211750,1730647846800,-500.0,0.0003945,2]
[341211751,1730647846809,-500.0,0.0003945,2]
[341211752,1730647846819,-2411.17,0.0003945,2]
[341211753,1730647846828,-161.00341479,0.0003945,2]
[341211754,1730647846838,-500.0,0.0003945,2]
[341211755,1730647846847,-635.97,0.0003945,2]
[341211756,1730647846857,-320.07899157,0.0003945,2]
[341211757,1730647846867,-500.0,0.00039451,2]
[341211758,1730647846877,-288.08111797,0.00039451,2]
[341211759,1730647846887,-500.0,0.00039451,2]
[341211760,1730647846898,-500.0,0.00039451,2]
[341211761,1730647846910,-500.0,0.00039724,2]
[341211762,1730647846919,-33333.33,0.00039724,2]
[341211763,1730647846928,-500.0,0.00039724,2]
[341211764,1730647846938,-2411.17,0.00039724,2]
[341211765,1730647846947,-500.0,0.00039724,2]
[341211766,1730647846956,-635.97,0.00039724,2]
[341211767,1730647846966,-500.0,0.00039725,2]
[341211768,1730647846976,-500.0,0.00039725,2]
[341211769,1730647846985,-500.0,0.00039725,2]
[341211770,1730647846996,-3000.0,0.00039808,10]
[341211771,1730647847005,-500.0,0.00039998,2]
[341211772,1730647847015,-33333.33,0.00039998,2]
[341211773,1730647847024,-500.0,0.00039998,2]
[341211774,1730647847033,-2411.17,0.00039998,2]
[341211775,1730647847042,-304.45271936,0.00039998,2]
[341211776,1730647847052,-635.97,0.00039998,2]
[341211777,1730647847062,-500.0,0.00039999,2]
[341211778,1730647847071,-500.0,0.00039999,2]
[341211779,1730647847080,-500.0,0.00039999,2]
[341211780,1730647847090,-2912.11443561,0.0004,4]
[341211781,1730647847099,-152.59,0.000402,31]
[341211782,1730647847108,-152.59,0.000402,31]
[341211783,1730647847117,-152.59,0.000402,31]
[341211784,1730647847126,-152.59,0.000402,31]
[341211785,1730647847135,-152.59,0.000402,31]
[341211786,1730647847144,-152.59,0.000402,31]
[341211787,1730647847154,-152.59,0.000402,31]
[341211788,1730647847163,-152.59,0.000402,31]
[341211789,1730647847173,-500.0,0.00040272,2]
[341211790,1730647847182,-33333.33,0.00040272,2]
[341211791,1730647847191,-567.59379677,0.00040272,2]
[341211792,1730647847201,-2411.17,0.00040272,2]
[341211793,1730647847210,-635.97,0.00040272,2]
[341211794,1730647847220,-500.0,0.00040273,2]
[341211795,1730647847229,-500.0,0.00040273,2]
[341211796,1730647847238,-500.0,0.00040273,2]
[341211797,1730647847250,-1000.0,0.00040401,2]
[341211798,1730647847259,-500.0,0.00040546,2]
[341211799,1730647847268,-33333.33,0.00040546,2]
[341211800,1730647847277,-2411.17,0.00040546,2]
[341211801,1730647847287,-635.97,0.00040546,2]
[341211802,1730647847296,-592.05919665,0.00040547,2]
[341211803,1730647847305,-500.0,0.00040547,2]
[341211804,1730647847315,-500.0,0.00040547,2]
[341211805,1730647847324,-579.03770755,0.0004082,2]
[341211806,1730647847334,-18808.88193793,0.0004082,2]
[341211807,1730647847374,-11738.21149786,0.0004082,2]
[341211808,1730647847386,-2786.23656421,0.0004082,2]
[341211809,1730647847395,-2411.17,0.0004082,2]
[341211810,1730647847404,-635.97,0.0004082,2]
[341211811,1730647847413,-500.0,0.00040821,2]
[341211812,1730647847423,-500.0,0.00040821,2]
[341211813,1730647847432,-856.37987995,0.00040995,2]
[341211814,1730647847441,-33333.33,0.00041094,2]
[341211815,1730647847450,-2411.17,0.00041094,2]
[341211816,1730647847460,-635.97,0.00041094,2]
[341211817,1730647847469,-457.0,0.00041095,5]
[341211818,1730647847478,-500.0,0.00041095,2]
[341211819,1730647847488,-500.0,0.00041095,2]
[341211820,1730647847498,-4000.0,0.00041096,30]
[341211821,1730647847507,-5000.0,0.00041096,120]
[341211822,1730647847516,-150.0,0.00041096,2]
[341211823,1730647847526,-157.0,0.00041096,2]
[341211824,1730647847536,-186.76863896,0.000411,2]
[341211825,1730647847547,-449.37399373,0.000411,2]
[341211826,1730647847556,-551.32577988,0.000411,2]
[341211827,1730647847566,-500.0,0.000411,2]
[341211828,1730647847575,-150.0,0.0004112,2]
[341211829,1730647847584,-856.37987986,0.00041225,2]
[341211830,1730647847594,-150.0,0.00041274,2]
[341211831,1730647847603,-33333.33,0.00041368,2]
[341211832,1730647847613,-2411.17,0.00041368,2]
[341211833,1730647847622,-635.97,0.00041368,2]
[341211834,1730647847632,-500.0,0.00041369,2]
[341211835,1730647847640,-500.0,0.00041369,2]
[341211836,1730647847650,-150.0,0.00041371,2]
[341211837,1730647847659,-856.37987986,0.00041454,2]
[341211838,1730647847667,-150.0,0.00041461,2]
[341211839,1730647847677,-150.0,0.00041467,2]
[341211840,1730647847686,-150.0,0.00041486,2]
[341211841,1730647847695,-150.0,0.00041587,2]
[341211842,1730647847704,-33333.33,0.00041642,2]
[341211843,1730647847713,-2411.17,0.00041642,2]
[341211844,1730647847723,-635.97,0.00041642,2]
[341211845,1730647847732,-550.268561,0.00041643,2]
[341211846,1730647847742,-500.0,0.00041643,2]
[341211847,1730647847753,-232.29,0.00041675,2]
[341211848,1730647847762,-856.37987986,0.00041684,2]
[341211849,1730647847771,-35.66694265,0.00041752,2]
[341211894,1730648993742,165.69,0.00015,2]
[341211899,1730649031863,-152.97,0.00015342,2]
[341211901,1730649031873,-211.035,0.00019725,2]
[341211903,1730649031884,-88.965,0.00019725,2]
[341211904,1730649031894,-150.0,0.00021315,2]
[341211905,1730649031904,-31.4626844,0.00021335,2]
[341211906,1730649031958,-6547.5,0.00021335,2]
[341211907,1730649031971,-297.00527723,0.00021335,2]
[341211908,1730649031983,-3015.34007028,0.00021335,2]
[341211909,1730649031992,-454.183,0.00021335,2]
[341211910,1730649032002,-1250.0,0.00021335,2]
[341211911,1730649032011,-242.67,0.00021335,2]
[341211912,1730649032020,-557.0,0.00021335,2]
[341211913,1730649032029,-937.0,0.00021335,2]
[341211914,1730649032038,-1791.0,0.00021335,2]
[341211915,1730649032047,-153.803,0.00021335,2]
[341211916,1730649032056,-266.4,0.00021335,2]
[341211917,1730649032066,-13596.0,0.00021335,2]
[341211918,1730649032076,-5909.0,0.00021335,2]
[341211919,1730649032085,-500.0,0.0002375,2]
[341211920,1730649032095,-7062.67,0.00024335,2]
[341211921,1730649032105,-246.2,0.00024335,2]
[341211922,1730649032114,-150.0,0.000249,2]
[341211923,1730649032124,-700.0,0.00026,9]
[341211924,1730649032135,-700.0,0.00026,9]
[341211925,1730649032144,-700.0,0.00026,9]
[341211926,1730649032154,-700.0,0.00026,9]
[341211927,1730649032163,-700.0,0.00026,9]
[341211928,1730649032172,-356.12,0.00026986,120]
[341211929,1730649032182,-235.99,0.000298,7]
[341211930,1730649032192,-2000.0,0.00034234,3]
[341211931,1730649032202,-150.0,0.00034548,10]
[341211932,1730649032211,-200.0,0.00034603,2]
[341211933,1730649032221,-200.0,0.0003462,2]
[341211934,1730649032230,-200.0,0.0003474,2]
[341211935,1730649032241,-232.14,0.00035324,2]
[341211936,1730649032250,-152.97,0.00035616,2]
[341211937,1730649032260,-166.1,0.00036176,2]
[341211938,1730649032270,-1170.53,0.00036737,2]
[341211939,1730649032280,-159.33,0.00036788,2]
[341211940,1730649032289,-597.62,0.00036795,2]
[341211941,1730649032299,-364.6,0.00036821,2]
[341211942,1730649032308,-497.7,0.00036888,46]
[341211943,1730649032318,-1482.74,0.00036901,2]
[341211945,1730649032328,-167.734,0.00036901,2]
[341211947,1730649032339,-167.734,0.00036901,2]
[341211950,1730649032353,-167.734,0.00036901,2]
[341211952,1730649032364,-167.734,0.00036901,2]
[341211954,1730649032373,-167.734,0.00036901,2]
[341211956,1730649032385,-167.734,0.00036901,2]
[341211958,1730649032395,-167.734,0.00036901,2]
[341211959,1730649032404,-167.734,0.00036901,2]
[341211960,1730649032414,-167.734,0.00036901,2]
[341211961,1730649032425,-167.734,0.00036901,2]
[341211962,1730649032435,-1623.2,0.00036903,2]
[341211963,1730649032446,-167.14,0.00036904,120]
[341211964,1730649032455,-250.0,0.00036925,2]
[341211965,1730649032464,-500.05,0.0003699,2]
[341211966,1730649032473,-2742.78,0.00037049,2]
[341211967,1730649032483,-2622.06,0.0003705,2]
[341211968,1730649032492,-177.99,0.00037213,2]
[341211969,1730649032502,-150.0,0.00037279,7]
[341211970,1730649032512,-500.0,0.00037304,2]
[341211971,1730649032523,-150.0,0.00037304,2]
[341211972,1730649032532,-200.0,0.00037367,2]
[341211973,1730649032541,-160.011,0.0003738,15]
[341211974,1730649032551,-200.0,0.00037507,2]
[341211975,1730649032561,-232.14,0.00037588,2]
[341211976,1730649032573,-2000.0,0.00037628,4]
[341211977,1730649032583,-152.63,0.000377,31]
[341211978,1730649032592,-152.63,0.000377,31]
[341211979,1730649032602,-152.63,0.000377,31]
[341211980,1730649032611,-196.66,0.000378,14]
[341211981,1730649032622,-173.26,0.00037878,120]
[341211982,1730649032632,-23900.0,0.00038016,2]
[341211983,1730649032643,-5140.05,0.00038037,2]
[341211984,1730649032654,-160.024,0.0003826,14]
[341211985,1730649032665,-250.0,0.00038356,2]
[341211986,1730649032674,-181.93,0.00038591,2]
[341211987,1730649032683,-161.99,0.00038612,120]
[341211988,1730649032695,-160.98,0.00038683,2]
[341211989,1730649032705,-160.98,0.0003878,2]
[341211990,1730649032714,-1426.1882,0.00038803,2]
[341211991,1730649032723,-160.98,0.00038876,2]
[341211992,1730649032732,-1000.0,0.00038918,2]
[341211993,1730649032742,-1071.14,0.00038933,2]
[341211994,1730649032753,-160.98,0.00038973,2]
[341211995,1730649032762,-260.4,0.00039066,10]
[341211996,1730649032771,-160.98,0.0003907,2]
[341211997,1730649032780,-786.2575,0.00039076,2]
[341211998,1730649032789,-1438.1884,0.00039076,2]
[341211999,1730649032798,-2889.5828,0.00039076,2]
[341212000,1730649032807,-2149.1037,0.00039076,2]
[341212001,1730649032817,-6378.1446,0.00039076,2]
[341212002,1730649032827,-209.41837626,0.00039076,2]
[341212003,1730649032836,-160.046,0.0003914,7]
[341212004,1730649032845,-312.48,0.00039166,10]
[341212005,1730649032854,-573.97,0.00039176,2]
[341212006,1730649032863,-542.58546105,0.00039176,2]
[341212007,1730649032873,-521.02920399,0.00039176,2]
[341212008,1730649032882,-500.0,0.00039176,2]
[341212009,1730649032892,-514.88,0.00039176,2]
[341212010,1730649032904,-594.21,0.00039176,2]
[341212011,1730649032914,-500.0,0.00039176,2]
[341212012,1730649032925,-555.72,0.00039176,2]
[341212013,1730649032934,-511.38637583,0.00039176,2]
[341212014,1730649032944,-599.22770538,0.00039176,2]
[341212015,1730649032954,-500.0,0.00039176,2]
[341212016,1730649032964,-524.20329958,0.00039176,2]
[341212017,1730649032974,-500.0,0.00039176,2]
[341212018,1730649032983,-520.23682291,0.00039176,2]
[341212019,1730649032992,-508.9640007,0.00039176,2]
[341212020,1730649033001,-520.8378106,0.00039176,2]
[341212021,1730649033010,-510.01758228,0.00039176,2]
[341212022,1730649033020,-500.0,0.00039176,2]
[341212023,1730649033029,-430.20434866,0.00039176,2]
[341212024,1730649033039,-508.28557412,0.00039176,2]
[341212025,1730649033048,-527.42136011,0.00039176,2]
[341212026,1730649033057,-1000.0,0.0003935,2]
[341212027,1730649033066,-160.014,0.0003938,2]
[341212028,1730649033076,-500.0,0.0003945,2]
[341212029,1730649033085,-594.21,0.0003945,2]
[341212030,1730649033094,-555.72,0.0003945,2]
[341212031,1730649033104,-325.23,0.00039724,2]
[341212032,1730649033114,-594.21,0.00039724,2]
[341212033,1730649033123,-555.72,0.00039724,2]
[341212034,1730649033132,-232.14,0.00039852,2]
[341212035,1730649033142,-594.21,0.00039998,2]
[341212036,1730649033151,-555.72,0.00039998,2]
[341212037,1730649033162,-500.0,0.0004,30]
[341212038,1730649033171,-500.0,0.0004,30]
[341212039,1730649033181,-3035.0,0.0004,120]
[341212040,1730649033191,-160.637,0.0004002,60]
[341212041,1730649033201,-209.41837624,0.00040072,2]
[341212042,1730649033211,-152.63,0.000402,31]
[341212043,1730649033221,-152.63,0.000402,31]
[341212044,1730649033230,-152.63,0.000402,31]
[341212045,1730649033240,-152.63,0.000402,31]
[341212046,1730649033250,-152.63,0.000402,31]
[341212047,1730649033260,-152.63,0.000402,31]
[341212048,1730649033269,-166.16,0.00040232,2]
[341212049,1730649033278,-594.21,0.00040272,2]
[341212050,1730649033288,-555.72,0.00040272,2]
[341212051,1730649033297,-403.9164,0.00040446,2]
[341212052,1730649033307,-316.4694,0.0004052,2]
[341212053,1730649033317,-485.19193146,0.0004052,15]
[341212054,1730649033327,-594.21,0.00040546,2]
[341212055,1730649033336,-555.72,0.00040546,2]
[341212056,1730649033350,-268.25,0.0004061,2]
[341212057,1730649033360,-500.0,0.00040619,2]
[341212058,1730649033369,-500.0,0.00040619,2]
[341212059,1730649033379,-500.0,0.00040619,2]
[341212060,1730649033389,-500.0,0.00040619,2]
[341212061,1730649033399,-500.0,0.00040619,2]
[341212062,1730649033408,-500.0,0.00040619,2]
[341212063,1730649033418,-525.22,0.00040619,2]
[341212064,1730649033427,-500.0,0.00040619,2]
[341212065,1730649033438,-502.79107833,0.00040619,2]
[341212066,1730649033448,-575.06364243,0.00040619,2]
[341212067,1730649033457,-544.70945445,0.00040619,2]
[341212068,1730649033466,-500.0,0.00040619,2]
[341212069,1730649033475,-512.78283409,0.00040619,2]
[341212070,1730649033485,-500.0,0.00040619,2]
[341212071,1730649033495,-500.0,0.00040619,2]
[341212072,1730649033504,-20833.33,0.00040619,2]
[341212073,1730649033514,-543.77797213,0.00040619,2]
[341212074,1730649033523,-500.0,0.00040619,2]
[341212075,1730649033533,-500.0,0.00040619,2]
[341212076,1730649033542,-1406.52,0.00040619,2]
[341212077,1730649033551,-537.30316845,0.00040619,2]
[341212078,1730649033561,-500.0,0.00040619,2]
[341212079,1730649033571,-500.0,0.00040619,2]
[341212080,1730649033581,-500.0,0.00040619,2]
[341212081,1730649033590,-525.3145461,0.00040619,2]
[341212082,1730649033600,-500.0,0.00040619,2]
[341212083,1730649033611,-2883.5254,0.0004062,2]
[341212084,1730649033621,-136163.4407,0.0004062,2]
[341212085,1730649033631,-3471.56352132,0.0004062,2]
[341212086,1730649033650,-1988.71107868,0.0004062,2]
[341212087,1730649033660,-268.25,0.0004071,2]
[341212088,1730649033671,-4575.30568474,0.0004072,2]
[341212089,1730649033683,-2375.67395376,0.0004072,2]
[341212090,1730649033699,-276.7759711,0.0004072,2]
[341212091,1730649033711,-3595.95262906,0.0004072,2]
[341212094,1730649038297,-1088.0,0.00021335,2]
[341212095,1730649038307,-273.364,0.000392,30]
[341212096,1730649038317,-30418.74126134,0.0004072,2]
[341212097,1730649038326,-594.21,0.0004082,2]
[341212098,1730649038335,-555.72,0.0004082,2]
[341212099,1730649038350,-500.0,0.00040893,2]
[341212100,1730649038360,-500.0,0.00040893,2]
[341212101,1730649038369,-7979.38195453,0.00040893,2]
[341212102,1730649038381,-3590.13138443,0.00040893,2]
[341212103,1730649038420,-9263.81666104,0.00040893,2]
[341212105,1730649038430,-387.0009121,0.00040893,2]
[341212107,1730649038442,-500.0,0.00040893,2]
[341212109,1730649038452,-1406.52,0.00040893,2]
[341212111,1730649038461,-485.19193143,0.00040928,15]
[341212113,1730649038471,-177.99,0.00040934,2]
[341212115,1730649038481,-699.54853218,0.00041067,2]
[341212117,1730649038490,-209.41837624,0.00041067,2]
[341212119,1730649038499,-268.25,0.00041086,2]
[341212121,1730649038508,-594.21,0.00041094,2]
[341212122,1730649038518,-555.72,0.00041094,2]
[341212124,1730649038527,-371.47692837,0.00041095,2]
[341212126,1730649038537,-559.99,0.00041095,2]
[341212127,1730649038547,-559.99,0.00041095,2]
[341212128,1730649038558,-4000.0,0.00041096,30]
[341212129,1730649038575,-157.0,0.00041096,2]
[341212130,1730649038585,-150.0,0.00041096,2]
[341212131,1730649038594,-3212.0,0.000411,2]
[341212132,1730649038603,-500.0,0.00041167,2]
[341212144,1730649038751,-500.0,0.00041167,2]
[341212145,1730649038762,-20833.33,0.00041167,2]
[341212146,1730649038771,-500.0,0.00041167,2]
[341212147,1730649038781,-1406.52,0.00041167,2]
[341212148,1730649038790,-559.99,0.00041167,2]
[341212149,1730649038799,-500.0,0.00041258,2]
[341212150,1730649038809,-699.54853206,0.0004129,2]
[341212151,1730649038818,-485.19193143,0.00041335,15]
[341212152,1730649038828,-594.21,0.00041368,2]
[341212153,1730649038837,-555.72,0.00041368,2]
[341212154,1730649038846,-500.0,0.00041441,2]
[341212155,1730649038856,-500.0,0.00041441,2]
[341212156,1730649038865,-20833.33,0.00041441,2]
[341212157,1730649038875,-500.0,0.00041441,2]
[341212158,1730649038884,-1406.52,0.00041441,2]
[341212159,1730649038894,-559.99,0.00041441,2]
[341212160,1730649038905,-5000.0,0.00041461,16]
[341212161,1730649038914,-169.37,0.0004149,2]
[341212162,1730649038924,-699.54853206,0.00041513,2]
[341212163,1730649038933,-500.0,0.00041532,2]
[341212164,1730649038945,-268.25,0.00041538,2]
[341212165,1730649038954,-502.54362859,0.00041548,10]
[341212166,1730649038964,-160.059,0.0004157,120]
[341212167,1730649038973,-594.21,0.00041642,2]
[341212168,1730649038982,-555.72,0.00041642,2]
[341212169,1730649038992,-500.0,0.00041715,2]
[341212170,1730649039002,-500.0,0.00041715,2]
[341212171,1730649039011,-20833.33,0.00041715,2]
[341212172,1730649039021,-500.0,0.00041715,2]
[341212173,1730649039030,-1406.52,0.00041715,2]
[341212174,1730649039040,-559.99,0.00041715,2]
[341212175,1730649039049,-699.54853206,0.00041736,2]
[341212176,1730649039058,-485.19193143,0.00041743,15]
[341212177,1730649039068,-7734.58369577,0.00041748,5]
[341212178,1730649039077,-150.0,0.00041768,2]
[341212179,1730649039086,-150.0,0.0004179,2]
[341212180,1730649039096,-500.0,0.00041806,2]
[341212181,1730649039105,-150.0,0.00041883,2]
[341212182,1730649039114,-594.21,0.00041916,2]
[341212183,1730649039124,-555.72,0.00041916,2]
[341212184,1730649039134,-699.54853206,0.00041959,2]
[341212185,1730649039143,-150.0,0.00041961,2]
[341212186,1730649039152,-150.0,0.00041968,2]
[341212187,1730649039162,-268.25,0.00041979,2]
[341212188,1730649039172,-500.0,0.00041989,2]
[341212189,1730649039181,-500.0,0.00041989,2]
[341212190,1730649039190,-20833.33,0.00041989,2]
[341212191,1730649039203,-500.0,0.00041989,2]
[341212192,1730649039212,-1406.52,0.00041989,2]
[341212193,1730649039222,-559.99,0.00041989,2]
[341212194,1730649039231,-150.0,0.00041999,2]
[341212195,1730649039240,-73520.79626201,0.00042,30]
[341212196,1730649039249,-366.28970139,0.0004208,2]
[341212197,1730649039259,-223.66228821,0.0004208,2]
[341212198,1730649039268,-152.7,0.0004208,2]
[341212199,1730649039277,-25464.8996448,0.0004209,2]
[341212200,1730649040093,-760.9697552,0.0004209,2]
[341212201,1730649040103,-232.14,0.00042116,2]
[341212202,1730649040113,-485.19193143,0.0004215,15]
[341212203,1730649040123,-150.0,0.00042177,2]
[341212204,1730649040133,-699.54853206,0.00042182,2]
[341212205,1730649040142,-610.0,0.0004219,7]
[341212206,1730649040151,-594.21,0.0004219,2]
[341212207,1730649040161,-555.72,0.0004219,2]
[341212208,1730649040170,-150.0,0.0004226,2]
[341212209,1730649040180,-500.0,0.00042263,2]
[341212210,1730649040189,-500.0,0.00042263,2]
[341212211,1730649040204,-2550.39646913,0.00042263,2]
[341212212,1730649040216,-3686.33946517,0.00042263,2]
[341212213,1730649040332,-217.0,0.00041431,10]
[341212214,1730649040342,-14596.5940657,0.00042263,2]
[341212215,1730649040356,-500.0,0.00042263,2]
[341212216,1730649040366,-1406.52,0.00042263,2]
[341212217,1730649040375,-559.99,0.00042263,2]
[341212218,1730649040385,-150.0,0.00042305,2]
[341212219,1730649040395,-10184.61228617,0.000424,3]